bitfinex/quotes_BTCUSD_20240811
["timestamp","ask_amount","ask_price","bid_price","bid_amount"]
[1723379791395,0.08984646,60514.0,60513.0,0.14097043]
[1723379792625,0.08984646,60514.0,60513.0,0.25664743]
[1723379792827,0.08984646,60514.0,60513.0,0.25164743]
[1723379793054,0.231302,60527.0,60521.0,0.115662]
[1723379793260,0.15384646,60534.0,60521.0,0.0904662]
[1723379793261,0.06385375,60522.0,60521.0,0.0904662]
[1723379793471,0.15384646,60534.0,60521.0,0.0904662]
[1723379793472,0.231285,60532.0,60525.0,0.115652]
[1723379793687,0.29510977,60531.0,60525.0,0.115652]
[1723379793890,0.29510977,60531.0,60523.0,0.231315]
[1723379793891,0.08184646,60527.0,60526.0,0.15972575]
[1723379794507,0.08184646,60527.0,60526.0,0.39103075]
[1723379794709,0.08184646,60527.0,60526.0,0.15972575]
[1723379795759,0.08184646,60527.0,60526.0,0.04407375]
[1723379795965,0.08184646,60527.0,60526.0,0.0892]
[1723379796402,0.08784646,60527.0,60526.0,0.204852]
[1723379796825,0.08784646,60527.0,60521.0,0.1681]
[1723379796826,0.08184646,60527.0,60521.0,0.1681]
[1723379797033,0.115655,60525.0,60521.0,0.1681]
[1723379797471,0.0959,60523.0,60510.0,0.0789]
[1723379797673,0.66024346,60512.0,60505.0,0.1681]
[1723379797891,0.72404944,60512.0,60505.0,0.1681]
[1723379798519,1.52438452,60512.0,60500.0,0.01]
[1723379799378,1.53338452,60512.0,60500.0,0.01]
[1723379800004,1.75574352,60512.0,60500.0,0.01]
[1723379800252,1.84603524,60512.0,60500.0,0.01]
[1723379800475,1.86010763,60512.0,60500.0,0.01]
[1723379800679,2.04798945,60512.0,60500.0,0.01]
[1723379800882,1.67151522,60512.0,60500.0,0.01]
[1723379801085,2.2343362,60512.0,60500.0,0.01]
[1723379801291,2.2383362,60512.0,60500.0,0.01]
[1723379801527,2.2343362,60512.0,60500.0,0.01]
[1723379801724,2.2203362,60512.0,60500.0,0.01]
[1723379801929,2.3984859,60512.0,60500.0,0.01]
[1723379802078,2.54520011,60512.0,60500.0,0.01]
[1723379802295,2.15384824,60512.0,60500.0,0.01]
[1723379802470,2.38260906,60512.0,60500.0,0.01]
[1723379802674,1.57598014,60512.0,60502.0,0.0892]
[1723379802877,1.1433054,60512.0,60502.0,0.0892]
[1723379803058,1.54847932,60512.0,60502.0,0.0892]
[1723379803261,1.57349623,60512.0,60500.0,0.01]
[1723379803485,1.70232234,60512.0,60500.0,0.01]
[1723379803692,1.74681906,60512.0,60500.0,0.01]
[1723379803889,1.89139181,60512.0,60500.0,0.01]
[1723379804113,1.79731241,60512.0,60500.0,0.01]
[1723379804321,2.00284059,60512.0,60500.0,0.01]
[1723379804551,1.81469089,60512.0,60500.0,0.01]
[1723379804755,1.63316271,60512.0,60500.0,0.01]
[1723379804970,1.71728852,60512.0,60500.0,0.01]
[1723379805175,1.59826058,60512.0,60503.0,0.0937]
[1723379805353,1.61226058,60512.0,60503.0,0.0937]
[1723379805633,1.45676386,60512.0,60503.0,0.0937]
[1723379805845,1.44276386,60512.0,60503.0,0.0937]
[1723379806015,1.31949128,60512.0,60503.0,0.0937]
[1723379806159,1.09813228,60512.0,60503.0,0.0937]
[1723379806388,0.62095836,60512.0,60503.0,0.0937]
[1723379806629,0.15992036,60512.0,60504.0,0.240528]
[1723379806852,0.014,60512.0,60511.0,0.2103951]
[1723379807080,0.014,60512.0,60511.0,0.25457211]
[1723379807297,0.014,60512.0,60511.0,0.13889111]
[1723379807722,0.028,60512.0,60511.0,0.25457211]
[1723379807982,0.014,60512.0,60511.0,0.25457211]
[1723379808243,0.000831,60514.0,60511.0,0.25457211]
[1723379808488,0.10284646,60512.0,60511.0,0.0947141]
[1723379808684,0.09584646,60512.0,60511.0,0.0947141]
[1723379809150,0.08184646,60512.0,60511.0,0.0947141]
[1723379810111,0.08584646,60512.0,60511.0,0.0947141]
[1723379810323,0.09184646,60512.0,60511.0,0.0947141]
[1723379810564,0.08584646,60512.0,60511.0,0.12732301]
[1723379810770,0.09184646,60512.0,60511.0,0.24300401]
[1723379811201,0.08584646,60512.0,60511.0,0.24300401]
[1723379811413,0.09184646,60512.0,60511.0,0.12732301]
[1723379811622,0.09184646,60512.0,60511.0,0.24300401]
[1723379811868,0.08184646,60512.0,60511.0,0.24300401]
[1723379812071,0.09184646,60512.0,60511.0,0.12732301]
[1723379812506,0.09184646,60512.0,60511.0,0.0947141]
[1723379813216,0.20352546,60512.0,60511.0,0.0947141]
[1723379813462,0.09184646,60512.0,60511.0,0.0947141]
[1723379814147,0.08584646,60512.0,60511.0,0.0914141]
[1723379814383,0.09184646,60512.0,60511.0,0.0914141]
[1723379814869,0.09184646,60512.0,60504.0,0.124834]
[1723379814870,0.08584646,60512.0,60504.0,0.124834]
[1723379815097,0.08184646,60505.0,60504.0,0.180528]
[1723379816498,0.08284646,60505.0,60504.0,0.180528]
[1723379817165,0.08284646,60505.0,60504.0,0.274228]
[1723379817382,0.08284646,60505.0,60504.0,0.218534]
[1723379817603,0.08284646,60505.0,60504.0,0.124834]
[1723379817604,0.08684646,60505.0,60504.0,0.124834]
[1723379817828,0.08684646,60505.0,60504.0,0.009141]
[1723379817829,0.76110846,60505.0,60504.0,0.009141]
[1723379818118,1.05640759,60505.0,60504.0,0.009141]
[1723379818363,1.0564081,60505.0,60504.0,0.009141]
[1723379818785,1.0554081,60505.0,60504.0,0.009141]
[1723379818990,1.36808506,60505.0,60504.0,0.009141]
[1723379819209,1.37108506,60505.0,60504.0,0.009141]
[1723379819630,1.36808506,60505.0,60504.0,0.009141]
[1723379820154,1.36408506,60505.0,60504.0,0.009141]
[1723379820354,1.52789998,60505.0,60504.0,0.009141]
[1723379820584,1.53289998,60505.0,60504.0,0.009141]
[1723379820790,1.52789998,60505.0,60504.0,0.009141]
[1723379820994,1.32970838,60505.0,60504.0,0.009141]
[1723379821193,1.53592552,60505.0,60504.0,0.009141]
[1723379821851,1.53592597,60505.0,60504.0,0.009141]
[1723379822438,1.39864156,60505.0,60504.0,0.009141]
[1723379822847,1.53592567,60505.0,60504.0,0.009141]
[1723379824479,1.53596284,60505.0,60504.0,0.009141]
[1723379825494,0.88771646,60505.0,60504.0,0.009141]
[1723379825692,0.28766213,60505.0,60504.0,0.009141]
[1723379825905,0.75043213,60505.0,60504.0,0.009141]
[1723379826113,0.20924593,60505.0,60504.0,0.085141]
[1723379826337,0.07197013,60505.0,60504.0,0.5363381]
[1723379826749,0.008,60505.0,60504.0,0.5363381]
[1723379827583,0.008,60505.0,60504.0,0.2289491]
[1723379827929,0.008,60505.0,60504.0,0.87854202]
[1723379828343,0.008,60505.0,60504.0,1.10993102]
[1723379828942,0.008,60505.0,60504.0,1.41732002]
[1723379829150,0.000831,60513.0,60512.0,0.588397]
[1723379829421,0.000831,60513.0,60512.0,1.16111062]
[1723379829865,0.000831,60513.0,60512.0,1.18129572]
[1723379830509,0.000831,60513.0,60512.0,0.93993672]
[1723379830781,0.000831,60513.0,60512.0,0.5115777]
[1723379831020,0.000831,60513.0,60512.0,0.2691187]
[1723379831232,0.001831,60513.0,60512.0,0.1544397]
[1723379831453,0.001831,60513.0,60512.0,0.1534397]
[1723379831454,0.000831,60513.0,60512.0,0.1534397]
[1723379831880,0.002831,60513.0,60512.0,0.1554397]
[1723379832119,0.002831,60513.0,60512.0,0.2711187]
[1723379832329,0.001831,60513.0,60512.0,0.443638]
[1723379832548,0.001831,60513.0,60512.0,0.005]
[1723379832549,0.002831,60513.0,60512.0,0.005]
[1723379832981,0.118508,60513.0,60512.0,0.005]
[1723379833182,0.19935446,60513.0,60512.0,0.003]
[1723379833601,0.19935446,60513.0,60512.0,0.0178685]
[1723379833814,0.19835446,60513.0,60512.0,0.0148685]
[1723379834030,0.19835446,60513.0,60508.0,0.115685]
[1723379834249,0.11568,60512.0,60506.0,0.286289]
[1723379834477,0.11562641,60512.0,60507.0,0.115688]
[1723379834932,0.08367746,60513.0,60506.0,0.0946]
[1723379835121,0.11568,60512.0,60507.0,0.15775221]
[1723379835366,0.11568,60512.0,60508.0,0.115687]
[1723379835566,0.08367746,60513.0,60508.0,0.115687]
[1723379835797,0.19935546,60513.0,60508.0,0.115687]
[1723379836033,0.19835546,60513.0,60509.0,0.15750583]
[1723379837092,0.08267746,60513.0,60512.0,0.115679]
[1723379837847,0.08267746,60513.0,60512.0,0.672997]
[1723379837848,0.000831,60513.0,60512.0,0.672997]
[1723379838047,0.001831,60513.0,60512.0,0.748997]
[1723379838718,0.000831,60513.0,60512.0,0.751997]
[1723379838920,0.001831,60513.0,60512.0,1.22174923]
[1723379839876,0.001831,60513.0,60512.0,1.47285847]
[1723379840098,0.001831,60513.0,60512.0,1.57285847]
[1723379840325,0.001831,60513.0,60512.0,1.62925325]
[1723379840547,0.000831,60513.0,60512.0,1.62625325]
[1723379840745,0.001831,60513.0,60512.0,1.62625325]
[1723379840956,0.002831,60513.0,60512.0,1.63125325]
[1723379841190,0.000831,60513.0,60512.0,1.62625325]
[1723379841574,0.002831,60513.0,60512.0,1.57485847]
[1723379842651,0.002831,60513.0,60512.0,1.59685847]
[1723379844231,0.002831,60513.0,60512.0,1.57685847]
[1723379844442,0.002831,60513.0,60512.0,1.59685847]
[1723379845066,0.002831,60513.0,60512.0,1.57685847]
[1723379845278,0.002831,60513.0,60512.0,1.59685847]
[1723379847214,0.002831,60513.0,60512.0,1.57485847]
[1723379847634,0.002831,60513.0,60512.0,1.59685847]
[1723379848060,0.002831,60513.0,60512.0,1.57685847]
[1723379848265,0.002831,60513.0,60512.0,1.59685847]
[1723379850269,0.002831,60513.0,60512.0,1.57485847]
[1723379850486,0.002831,60513.0,60512.0,1.59685847]
[1723379850916,0.002831,60513.0,60512.0,1.57485847]
[1723379851372,0.002831,60513.0,60512.0,1.80621747]
[1723379851578,0.08184646,60527.0,60512.0,1.80621747]
[1723379851579,0.08184646,60527.0,60525.0,0.01]
[1723379851796,0.49107874,60537.0,60533.0,0.346917]
[1723379852003,0.49107874,60537.0,60533.0,0.578195]
[1723379852212,0.077,60539.0,60533.0,0.578195]
[1723379853614,0.077,60539.0,60533.0,0.582195]
[1723379854100,0.08184646,60541.0,60540.0,0.57813]
[1723379854328,0.08184646,60541.0,60540.0,0.76494492]
[1723379854557,0.08184646,60541.0,60540.0,0.346878]
[1723379854775,0.077,60540.0,60535.0,0.23127]
[1723379855012,0.308253,60540.0,60536.0,0.04182083]
[1723379855215,0.0927,60539.0,60536.0,0.04182083]
[1723379855419,0.208328,60539.0,60536.0,0.04182083]
[1723379855622,0.115629,60538.0,60536.0,0.04182083]
[1723379855825,0.0927,60537.0,60536.0,0.04182083]
[1723379856283,0.0927,60537.0,60520.0,0.0919]
[1723379856284,0.1697,60530.0,60526.0,0.115651]
[1723379856492,0.08184646,60527.0,60526.0,0.115652]
[1723379857342,0.08184646,60527.0,60516.0,0.00981255]
[1723379857552,0.0927,60526.0,60517.0,0.16381492]
[1723379857762,0.0927,60526.0,60525.0,0.115654]
[1723379857967,0.0927,60526.0,60525.0,0.346963]
[1723379859430,0.0927,60526.0,60525.0,0.119654]
[1723379859647,0.0927,60526.0,60525.0,0.124654]
[1723379859872,0.0927,60526.0,60525.0,0.1833827]
[1723379860497,0.0927,60526.0,60525.0,0.0677287]
[1723379860925,0.0927,60526.0,60525.0,0.1833827]
[1723379861578,0.0927,60526.0,60525.0,0.4096917]
[1723379861799,0.0957,60526.0,60525.0,0.4056917]
[1723379861994,0.0957,60526.0,60525.0,0.6370007]
[1723379861995,0.003,60526.0,60525.0,0.6370007]
[1723379862204,0.004,60526.0,60525.0,0.6370007]
[1723379862695,0.007,60526.0,60525.0,0.6370007]
[1723379863936,0.007,60526.0,60525.0,1.13082462]
[1723379864571,0.007,60526.0,60525.0,1.23742462]
[1723379864774,0.004,60526.0,60525.0,1.23742462]
[1723379864994,0.000831,60534.0,60533.0,0.578195]
[1723379865185,0.000831,60534.0,60533.0,0.78231761]
[1723379865633,0.000831,60534.0,60533.0,1.11019561]
[1723379866472,0.006831,60534.0,60533.0,1.11119561]
[1723379867496,0.011831,60534.0,60533.0,1.11119561]
[1723379867900,0.005831,60534.0,60533.0,1.11019561]
[1723379868232,0.011831,60534.0,60533.0,1.11119561]
[1723379868436,0.006831,60534.0,60533.0,1.11119561]
[1723379868633,0.000831,60534.0,60533.0,1.11019561]
[1723379868842,0.000831,60534.0,60533.0,1.12640154]
[1723379869246,0.000831,60534.0,60533.0,1.12040154]
[1723379869451,0.000831,60534.0,60533.0,1.12640154]
[1723379869656,0.000831,60534.0,60533.0,1.13340154]
[1723379869853,0.000831,60534.0,60533.0,1.21910154]
[1723379871039,0.000831,60534.0,60533.0,1.20910154]
[1723379871183,0.000831,60534.0,60533.0,1.20310154]
[1723379871588,0.000831,60534.0,60533.0,1.20510154]
[1723379871818,0.000831,60534.0,60533.0,1.21510154]
[1723379872885,0.000831,60534.0,60533.0,1.22510154]
[1723379873088,0.000831,60534.0,60533.0,1.21510154]
[1723379873468,0.000831,60534.0,60533.0,1.22510154]
[1723379873671,0.000831,60534.0,60533.0,1.21510154]
[1723379875838,0.000831,60534.0,60533.0,1.13940154]
[1723379876040,0.000831,60534.0,60533.0,1.04280154]
[1723379880016,0.000831,60534.0,60533.0,0.61450269]
[1723379880248,0.163831,60534.0,60533.0,0.019]
[1723379880953,0.163831,60534.0,60533.0,0.346917]
[1723379881370,0.163831,60534.0,60533.0,0.347917]
[1723379881841,0.163831,60534.0,60533.0,0.579195]
[1723379882050,0.163831,60534.0,60533.0,0.61386544]
[1723379886022,0.072731,60534.0,60533.0,0.61386544]
[1723379886240,0.000831,60534.0,60533.0,0.77768036]
[1723379886449,0.000831,60534.0,60533.0,0.80068036]
[1723379886680,0.000831,60534.0,60533.0,0.61386544]
[1723379887495,0.000831,60534.0,60533.0,0.61286544]
[1723379888109,0.000831,60534.0,60533.0,0.61386544]
[1723379888770,0.000831,60534.0,60533.0,0.61486544]
[1723379888989,0.000831,60534.0,60533.0,0.61386544]
[1723379889433,0.000831,60534.0,60533.0,0.61686544]
[1723379889654,0.000831,60534.0,60533.0,0.61586544]
[1723379889882,0.287768,60534.0,60533.0,0.003]
[1723379890111,0.172131,60534.0,60533.0,0.003]
[1723379890326,0.172131,60534.0,60533.0,0.118639]
[1723379890553,0.172131,60534.0,60533.0,0.115639]
[1723379890764,0.172131,60534.0,60533.0,0.1503319]
[1723379890966,0.172131,60534.0,60533.0,0.0396929]
[1723379891164,0.25397746,60534.0,60533.0,0.0396929]
[1723379891392,0.25397746,60534.0,60533.0,0.0346929]
[1723379891706,0.25397746,60534.0,60533.0,0.0376929]
[1723379891930,0.25397746,60534.0,60533.0,0.0386929]
[1723379892336,0.3180522,60534.0,60533.0,0.0346929]
[1723379892594,0.4336892,60534.0,60533.0,0.0346929]
[1723379893102,0.3180522,60534.0,60525.0,0.01021952]
[1723379893256,0.210257,60524.0,60518.0,0.231335]
[1723379893468,0.0946,60524.0,60522.0,0.115659]
[1723379893682,0.0640427,60523.0,60522.0,0.115659]
[1723379894544,0.0946,60524.0,60523.0,0.346975]
[1723379894760,0.0986,60524.0,60523.0,0.346975]
[1723379894981,0.004,60524.0,60523.0,0.99642392]
[1723379895193,0.0946,60531.0,60530.0,0.115645]
[1723379895407,0.15869736,60531.0,60530.0,0.1503395]
[1723379896638,0.15869736,60531.0,60530.0,0.3816295]
[1723379896837,0.15869736,60531.0,60530.0,0.6129195]
[1723379897065,0.0767,60533.0,60532.0,0.115641]
[1723379897265,0.14076063,60533.0,60532.0,0.346923]
[1723379897465,0.14076063,60533.0,60532.0,0.63690964]
[1723379898461,0.14576063,60533.0,60532.0,0.63690964]
[1723379899316,0.14576063,60533.0,60532.0,1.03200656]
[1723379899317,0.005,60533.0,60532.0,1.03200656]
[1723379899519,0.012,60533.0,60532.0,1.14610656]
[1723379900205,0.012,60533.0,60532.0,1.15620912]
[1723379900407,0.012,60533.0,60532.0,1.16620912]
[1723379900843,0.012,60533.0,60532.0,1.16820912]
[1723379901042,0.012,60533.0,60532.0,1.16620912]
[1723379901274,0.007,60533.0,60532.0,1.16620912]
[1723379901483,0.08267746,60534.0,60533.0,0.809473]
[1723379901691,0.08267746,60534.0,60533.0,1.04098242]
[1723379901899,0.08267746,60534.0,60533.0,1.03098242]
[1723379903817,0.08267746,60534.0,60533.0,0.79970442]
[1723379904427,0.08267746,60534.0,60533.0,0.80670442]
[1723379904761,0.08267746,60534.0,60533.0,1.03798242]
[1723379905014,0.08267746,60534.0,60533.0,0.80670442]
[1723379905250,0.08267746,60534.0,60533.0,1.04398242]
[1723379905466,0.08267746,60534.0,60533.0,0.81270442]
[1723379906340,0.08267746,60534.0,60533.0,0.013]
[1723379906565,0.17927746,60534.0,60533.0,0.359917]
[1723379906785,0.08267746,60534.0,60533.0,0.359917]
[1723379908760,0.08267746,60534.0,60533.0,0.591195]
[1723379908958,0.08267746,60534.0,60533.0,0.77800992]
[1723379912764,0.08267746,60534.0,60533.0,0.54673192]
[1723379912941,0.25437746,60534.0,60533.0,0.54673192]
[1723379913528,0.25437746,60534.0,60533.0,0.128639]
[1723379913741,0.43437444,60534.0,60533.0,0.013]
[1723379913898,0.33152168,60534.0,60533.0,0.013]
[1723379914105,0.33152168,60534.0,60533.0,0.0489937]
[1723379914489,0.33152168,60534.0,60533.0,0.006]
[1723379914700,0.33152168,60534.0,60531.0,0.115642]
[1723379914926,0.07714422,60533.0,60531.0,0.115642]
[1723379915103,0.06435998,60532.0,60531.0,0.115642]
[1723379915519,0.06448695,60532.0,60529.0,0.231292]
[1723379915726,0.25637746,60534.0,60531.0,0.115641]
[1723379915964,0.25637746,60534.0,60533.0,0.115639]
[1723379916174,0.32480757,60534.0,60533.0,0.116639]
[1723379916368,0.31880758,60534.0,60532.0,0.115641]
[1723379916610,0.26037746,60534.0,60533.0,0.06013472]
[1723379916792,0.32480665,60534.0,60533.0,0.06013472]
[1723379917020,0.31880665,60534.0,60533.0,0.06013472]
[1723379917338,0.32280665,60534.0,60533.0,0.06013472]
[1723379917793,0.34083797,60534.0,60533.0,0.06013472]
[1723379917990,0.34083797,60534.0,60531.0,0.115642]
[1723379918227,0.06442919,60533.0,60531.0,0.115642]
[1723379919282,0.06442919,60533.0,60532.0,0.115641]
[1723379919930,0.06436552,60533.0,60532.0,0.115641]
[1723379920370,0.25437746,60534.0,60532.0,0.115641]
[1723379920579,0.06428354,60533.0,60532.0,0.115641]
[1723379920778,0.06828354,60533.0,60532.0,0.115641]
[1723379921723,0.06827263,60533.0,60532.0,0.115641]
[1723379922496,0.07127263,60533.0,60532.0,0.115641]
[1723379922717,0.06427263,60533.0,60532.0,0.115641]
[1723379922923,0.06427263,60533.0,60532.0,0.1734636]
[1723379923131,0.06427263,60533.0,60532.0,0.4047456]
[1723379923340,0.25437746,60534.0,60532.0,0.4047456]
[1723379923341,0.25437746,60534.0,60532.0,0.0598226]
[1723379923631,0.06428848,60533.0,60532.0,0.11764]
[1723379923860,0.06428848,60533.0,60532.0,0.348922]
[1723379924730,0.06428848,60533.0,60532.0,0.11564]
[1723379926168,0.06528848,60533.0,60532.0,0.11564]
[1723379926371,0.06728848,60533.0,60532.0,0.11564]
[1723379926602,0.06728848,60533.0,60532.0,0.1734622]
[1723379926820,0.06728848,60533.0,60532.0,0.6590262]
[1723379927259,0.003,60533.0,60532.0,0.6590262]
[1723379927701,0.15777746,60534.0,60533.0,0.346917]
[1723379927917,0.22200198,60534.0,60533.0,0.346917]
[1723379928126,0.22200198,60534.0,60533.0,0.38249394]
[1723379928740,0.15777746,60534.0,60533.0,0.38249394]
[1723379929295,0.22204476,60534.0,60533.0,0.38249394]
[1723379929471,0.22204476,60534.0,60533.0,0.61377194]
[1723379929701,0.15777746,60534.0,60533.0,0.61377194]
[1723379929915,0.15877746,60534.0,60533.0,0.61377194]
[1723379930095,0.22304404,60534.0,60533.0,0.61377194]
[1723379930461,0.15877746,60534.0,60533.0,0.38249394]
[1723379930845,0.22303502,60534.0,60533.0,0.61377194]
[1723379931036,0.15877746,60534.0,60533.0,0.61377194]
[1723379931241,0.22302978,60534.0,60533.0,0.61377194]
[1723379932304,0.22199737,60534.0,60533.0,0.61377194]
[1723379932723,0.22299737,60534.0,60533.0,0.61377194]
[1723379932928,0.22199737,60534.0,60533.0,0.61377194]
[1723379933273,0.22299737,60534.0,60533.0,0.38249394]
[1723379934093,0.22298986,60534.0,60533.0,0.38249394]
[1723379935540,0.14788986,60534.0,60533.0,0.38249394]
[1723379937625,0.1478323,60534.0,60533.0,0.38249394]
[1723379938015,0.06598584,60534.0,60533.0,1.12126486]
[1723379938365,0.06598584,60534.0,60533.0,1.20006486]
[1723379938366,0.001831,60534.0,60533.0,1.20006486]
[1723379938561,0.001831,60534.0,60533.0,1.25595134]
[1723379939252,0.000831,60534.0,60533.0,1.25595134]
[1723379939459,0.000831,60534.0,60533.0,1.26595134]
[1723379939668,0.001831,60534.0,60533.0,1.27895134]
[1723379940964,0.001831,60534.0,60533.0,1.27952848]
[1723379943621,0.001831,60534.0,60533.0,1.28289514]
[1723379947014,0.001831,60534.0,60533.0,1.28345411]
[1723379948595,0.001831,60534.0,60533.0,1.27345411]
[1723379948820,0.001831,60534.0,60533.0,1.10525411]
[1723379950327,0.001831,60534.0,60533.0,1.04486486]
[1723379950544,0.001831,60534.0,60533.0,1.10469129]
[1723379951835,0.171631,60534.0,60533.0,0.013]
[1723379952500,0.33041667,60534.0,60533.0,0.013]
[1723379952775,0.44505367,60534.0,60527.0,0.231299]
[1723379952991,0.1698,60532.0,60528.0,0.115648]
[1723379953211,0.1698,60530.0,60529.0,0.0578259]
[1723379954506,0.1698,60530.0,60527.0,0.115649]
[1723379954711,0.1708,60530.0,60527.0,0.115649]
[1723379955124,0.1698,60529.0,60527.0,0.115649]
[1723379956726,0.1698,60529.0,60528.0,0.115648]
[1723379957685,0.1698,60529.0,60527.0,0.002]
[1723379957953,0.1698,60529.0,60528.0,0.04746077]
[1723379958149,0.1698,60529.0,60528.0,0.16310877]
[1723379958656,0.1698,60529.0,60528.0,0.39440577]
[1723379959050,0.1698,60529.0,60528.0,0.16510877]
[1723379959745,0.1708,60529.0,60528.0,0.16310877]
[1723379959968,0.1698,60529.0,60528.0,0.16310877]
[1723379960376,0.1718,60529.0,60528.0,0.16310877]
[1723379960785,0.1698,60529.0,60528.0,0.16310877]
[1723379961389,0.1708,60529.0,60528.0,0.16310877]
[1723379961741,0.1708,60529.0,60528.0,0.16410877]
[1723379962660,0.1698,60529.0,60528.0,0.16410877]
[1723379963073,0.1718,60529.0,60528.0,0.16410877]
[1723379963922,0.1698,60529.0,60528.0,0.16410877]
[1723379964513,0.1708,60529.0,60528.0,0.16410877]
[1723379964926,0.1708,60529.0,60528.0,0.16310877]
[1723379965169,0.1708,60529.0,60528.0,0.04746077]
[1723379965371,0.1708,60529.0,60528.0,0.16310877]
[1723379965924,0.1698,60529.0,60528.0,0.16310877]
[1723379966125,0.1698,60529.0,60528.0,0.16410877]
[1723379966326,0.1718,60529.0,60528.0,0.16410877]
[1723379966586,0.1698,60529.0,60528.0,0.16410877]
[1723379966988,0.1708,60529.0,60528.0,0.16410877]
[1723379967399,0.1698,60529.0,60528.0,0.16410877]
[1723379967851,0.1718,60529.0,60528.0,0.16410877]
[1723379968051,0.1718,60529.0,60528.0,0.16310877]
[1723379968380,0.1718,60529.0,60528.0,0.04746077]
[1723379968990,0.1698,60529.0,60528.0,0.04746077]
[1723379969424,0.1697,60518.0,60507.0,0.02679397]
[1723379969575,0.08184646,60514.0,60507.0,0.02679397]
[1723379969797,0.08184646,60514.0,60511.0,0.01022497]
[1723379970006,0.19752146,60514.0,60507.0,0.25816997]
[1723379970205,0.19752146,60514.0,60510.0,0.00990925]
[1723379970414,0.19752146,60514.0,60510.0,0.12559125]
[1723379971189,0.19752146,60514.0,60513.0,0.0089141]
[1723379971610,0.08184646,60514.0,60513.0,0.02245605]
[1723379972026,0.36722146,60514.0,60513.0,0.0089141]
[1723379972238,0.59857246,60514.0,60513.0,0.0089141]
[1723379972452,0.89413561,60514.0,60513.0,0.0089141]
[1723379972875,0.89422167,60514.0,60513.0,0.0089141]
[1723379973169,0.89422167,60514.0,60513.0,0.0009141]
[1723379973356,0.89522167,60514.0,60513.0,0.0099141]
[1723379973582,0.89522167,60514.0,60513.0,0.0109141]
[1723379973786,0.89422167,60514.0,60513.0,0.0019141]
[1723379974022,0.89422167,60514.0,60513.0,0.0009141]
[1723379974240,0.89722167,60514.0,60513.0,0.0009141]
[1723379974486,0.90122167,60514.0,60513.0,0.0009141]
[1723379975133,1.13257267,60514.0,60513.0,0.0009141]
[1723379979410,1.14250464,60514.0,60513.0,0.0009141]
[1723379980256,1.13250464,60514.0,60513.0,0.0009141]
[1723379981541,1.14250464,60514.0,60513.0,0.0009141]
[1723379981747,1.13250464,60514.0,60513.0,0.0009141]
[1723379981955,1.14250464,60514.0,60513.0,0.0009141]
[1723379982176,1.13250464,60514.0,60513.0,0.0009141]
[1723379982831,1.13239542,60514.0,60513.0,0.0009141]
[1723379983366,1.13239543,60514.0,60513.0,0.0009141]
[1723379984430,0.66969343,60514.0,60513.0,0.0009141]
[1723379984637,0.60557246,60514.0,60513.0,0.0009141]
[1723379987566,0.16794646,60514.0,60513.0,0.0009141]
[1723379987774,0.007,60514.0,60513.0,0.12581392]
[1723379987982,0.007,60514.0,60513.0,0.35716892]
[1723379989421,0.007,60514.0,60513.0,0.58852392]
[1723379990473,0.007831,60514.0,60513.0,0.58852392]
[1723379990713,0.007831,60514.0,60513.0,0.83013884]
[1723379990944,0.007831,60514.0,60513.0,0.94353884]
[1723379992002,0.004831,60514.0,60513.0,0.94353884]
[1723379992424,0.000831,60514.0,60513.0,0.94553884]
[1723379992844,0.004831,60514.0,60513.0,0.94553884]
[1723379993079,0.004831,60514.0,60513.0,0.52098384]
[1723379993267,0.004831,60514.0,60513.0,0.0009141]
[1723379993268,0.077731,60514.0,60513.0,0.0009141]
[1723379993482,0.424757,60514.0,60513.0,0.0039141]
[1723379993687,0.58441587,60514.0,60513.0,0.0049141]
[1723379993900,0.289106,60514.0,60513.0,0.0049141]
[1723379994111,0.35318752,60514.0,60513.0,0.0049141]
[1723379994320,0.289106,60514.0,60513.0,0.01706532]
[1723379994537,0.35318848,60514.0,60513.0,0.02518301]
[1723379994751,0.58453948,60514.0,60513.0,0.01303179]
[1723379995183,0.58453948,60514.0,60513.0,0.0049141]
[1723379995393,0.58453948,60514.0,60513.0,0.0009141]
[1723379995844,0.36018848,60514.0,60513.0,0.0009141]
[1723379996258,0.58853948,60514.0,60513.0,0.0009141]
[1723379996670,0.36018848,60514.0,60513.0,0.01266532]
[1723379996887,0.24451348,60514.0,60513.0,0.01266532]
[1723379997326,0.24451348,60514.0,60513.0,0.02262581]
[1723379997327,0.36018848,60514.0,60513.0,0.02262581]
[1723379997540,0.24451348,60514.0,60513.0,0.02262581]
[1723379998457,0.36018848,60514.0,60513.0,0.02262581]
[1723379998885,0.24451348,60514.0,60513.0,0.02262581]
[1723380000158,0.32635994,60514.0,60513.0,0.02262581]
[1723380000384,0.67338594,60514.0,60513.0,0.01087459]
[1723380000605,0.84065446,60514.0,60513.0,0.01087459]
[1723380000822,1.04201578,60514.0,60513.0,0.0009141]
[1723380001044,1.27336678,60514.0,60513.0,0.0009141]
[1723380001260,1.04042505,60514.0,60513.0,0.0009141]
[1723380002993,1.04125605,60514.0,60513.0,0.0009141]
[1723380003203,1.04125551,60514.0,60513.0,0.0009141]
[1723380003654,0.83989473,60514.0,60513.0,0.0009141]
[1723380003863,1.04127063,60514.0,60513.0,0.0009141]
[1723380005613,0.80991963,60514.0,60513.0,0.0009141]
[1723380006051,0.46289363,60514.0,60513.0,0.0009141]
[1723380006324,0.15379822,60514.0,60513.0,0.12834172]
[1723380006539,0.15379822,60514.0,60513.0,0.01266472]
[1723380006755,0.15379822,60514.0,60513.0,0.0231702]
[1723380008196,0.26947322,60514.0,60513.0,0.0231702]
[1723380008406,0.15379822,60514.0,60513.0,0.0231702]
[1723380009945,0.15379822,60514.0,60513.0,0.1388472]
[1723380010152,0.08967746,60514.0,60513.0,0.0231702]
[1723380010362,0.15360758,60514.0,60513.0,0.0231702]
[1723380010773,0.15060758,60514.0,60513.0,0.0231702]
[1723380011216,0.14660758,60514.0,60513.0,0.0231702]
[1723380011432,0.26528258,60514.0,60513.0,0.0231702]
[1723380011655,0.44108258,60514.0,60513.0,0.01141958]
[1723380011876,0.66943358,60514.0,60513.0,0.01141958]
[1723380012363,0.60850346,60514.0,60513.0,0.01141958]
[1723380012593,0.6724817,60514.0,60513.0,0.01141958]
[1723380012814,0.6694817,60514.0,60513.0,0.01141958]
[1723380013045,0.6694817,60514.0,60513.0,0.0009141]
[1723380013245,0.6734817,60514.0,60513.0,0.0009141]
[1723380013457,0.6694817,60514.0,60513.0,0.0009141]